Workbook

Sheet StartHere
B2: Student Identification Sheet (version5.2)
B4: Name | C4: Melissa Salgado | D4: <<- enter your name here | G4: (1) | H4: Add your name to Cell C4 and your Student ID to cell C6. Then Click [Start Here] to finish loading data.
G5: (2) | H5: Change the file name to include your name.
B6: Student ID | C6: 002 43 4822 | D6: <<- enter your Student ID here | G6: (3) | H6: When done with your work, Click [I'm Done]
G7: (3) | H7: Upload the file to the applicable iCollege
B8: Date/time | C8: =NOW() -> 2021-04-03T07:08:19.850 | H8: assignment folder to receive credit for this workshop/tutorial
C9: Spring 2021 | G9: (4) | H9: Never use a file created or started by another student (that is academic dishonesty). All text, codes, writing, data entry, formulas, configuration and instructions must be performed by the individual submitting the work.
C10: You must use Excel Desktop. Cloud Excel 365 will not work for this class. | E10: 2021-04-01T14:33:03.940 | F10: Melissa Salgado started S01
C12: Collaboration Started
C14: Individual Challenge started
C15: Kurt Schmitz © 2020 Do not post or reproduce.
B17: Excel release | C17: =INFO("release") -> 16.0 | D17: << Mac Users below 16.24, please update!
B18: OS | C18: =INFO("OSVERSION") -> Windows (32-bit) NT 10.00 | D18: << Windows users with version 16.0 are good to go.

Sheet 5.ID (hidden)
A1: Do Not Alter or Delete this Worksheet or you submission cannot be graded! | E1: DirVer
A2: Action | B2: Name | C2: Panther ID | D2: Date/Time | E2: S01
A3: Start S01 | B3: Melissa Salgado | C3: 002 43 4822 | D3: 2021-04-01T14:33:03.680 | E3: michael mutinda
A4: Starter Sheet | B4: None | C4: 0 | D4: 2020-01-01 | E4: C:\Users\micha\AppData\Local\Temp
E5: Welcome to Microsoft Excel version 16.0 build 13801 running on Windows (32-bit) NT 10.00!

Sheet Financial information
A1: Donut Information | AF1: Spring 2021
A2: Based on the below data, create the profit model for Donuts to Go. | F2: Enter totals | AF2: Melissa Salgado
A3: Assume that each customer will buy one donut and one cup of coffee | E3: Fixed Costs | F3: =SUM(C13:C28) -> 7050.35
E4: Varible Costs
E5: Coffee | F5: =C18+C17 -> 0.35
E6: Donut | F6: =C11 -> 0.5
E7: Total variable cost | F7: =SUM(F5:F6) -> 0.85
B8: Time period
A9: Revenue: Cup of Coffee | C9: 4
A10: Revenue: Donut | C10: 3.5 | E10: Month | F10: No of units | I10: Unit price | J10: Sales | M10: Unit cost | N10: Total cost | Q10: Profit
A11: Donut ingredients per donunt) | B11: per donut | C11: 0.5 | F11: 2018 | G11: 2019 | H11: 2020 | J11: 2018 | K11: 2019 | L11: 2020 | N11: 2018 | O11: 2019 | P11: 2020 | Q11: 2018 | R11: 2019 | S11: 2020
A12: paper products: napkins, plates etc | E12: Jan | F12: 2302 | G12: 2403 | H12: 2695 | I12: 7.5 | J12: =F12*I12 -> 17265 | K12: =G12*I12 -> 18022.5 | L12: =H12*I12 -> 20212.5 | M12: 0.85 | N12: =M12*F12 -> 1956.7 | O12: =M12*G12 -> 2042.55 | P12: =M12*H12 -> 2290.75 | Q12: =J12-N12 -> 15308.3 | R12: =K12-O12 -> 15979.95 | S12: =L12-P12 -> 17921.75
A13: Insurance | B13: month | C13: 200 | E13: Feb | F13: 2792.5 | G13: 2473.5 | H13: 3203 | I13: 7.5 | J13: 20943.75 | K13: =G13*I13 -> 18551.25 | L13: =H13*I13 -> 24022.5 | M13: 0.85 | N13: 2373.625 | O13: =M13*G13 -> 2102.475 | P13: =M13*H13 -> 2722.55 | Q13: =J13-N13 -> 18570.125 | R13: =K13-O13 -> 16448.775 | S13: =L13-P13 -> 21299.95
E14: Mar | F14: 2454.5 | G14: 2583.5 | H14: 3056 | I14: 7.5 | J14: 18408.75 | K14: 19376.25 | L14: 22920 | M14: 0.85 | N14: 2086.325 | O14: 2195.975 | P14: 2597.6 | Q14: 16322.425 | R14: 17180.275 | S14: 20322.4
A15: Maintenance & Repairs to equipment | B15: month | C15: 0 | E15: Apr | F15: 3254 | G15: 3362 | H15: 3620 | I15: 7.5 | J15: 24405 | K15: 25215 | L15: 27150 | M15: 0.85 | N15: 2765.9 | O15: 2857.7 | P15: 3077 | Q15: 21639.1 | R15: 22357.3 | S15: 24073
A16: Marketing & Promotion: Advertising | B16: month | C16: 50 | E16: May | F16: 3586.5 | G16: 3400.5 | H16: 3981.5 | I16: 7.5 | J16: 26898.75 | K16: 25503.75 | L16: 29861.25 | M16: 0.85 | N16: 3048.525 | O16: 2890.425 | P16: 3384.275 | Q16: 23850.225 | R16: 22613.325 | S16: 26476.975
A17: Coffee | B17: per cup | C17: 0.25 | E17: Jun | F17: 2635.5 | G17: 3628.5 | H17: 4053.5 | I17: 7.5 | J17: 19766.25 | K17: 27213.75 | L17: 30401.25 | M17: 0.85 | N17: 2240.175 | O17: 3084.225 | P17: 3445.475 | Q17: 17526.075 | R17: 24129.525 | S17: 26955.775
A18: Coffee cups | B18: per cup | C18: 0.1 | E18: Jul | F18: 1986 | G18: 2614 | H18: 3161 | I18: 7.5 | J18: 14895 | K18: 19605 | L18: 23707.5 | M18: 0.85 | N18: 1688.1 | O18: 2221.9 | P18: 2686.85 | Q18: 13206.9 | R18: 17383.1 | S18: 21020.65
A19: Payroll: Wages (Owner/ Manager) | B19: month | C19: 2500 | E19: Aug | F19: 2685 | G19: 2979 | H19: 3619 | I19: 7.5 | J19: 20137.5 | K19: 22342.5 | L19: 27142.5 | M19: 0.85 | N19: 2282.25 | O19: 2532.15 | P19: 3076.15 | Q19: 17855.25 | R19: 19810.35 | S19: 24066.35
A20: Payroll: Wages (per Employees) | B20: month | C20: 1000 | E20: Sep | F20: 2868 | G20: 3129 | H20: 3613 | I20: 7.5 | J20: 21510 | K20: 23467.5 | L20: 27097.5 | M20: 0.85 | N20: 2437.8 | O20: 2659.65 | P20: 3071.05 | Q20: 19072.2 | R20: 20807.85 | S20: 24026.45
A21: Donut and Coffee equipment rent | B21: month | C21: 500 | E21: Oct | F21: 2948 | G21: 3912 | H21: 4048 | I21: 7.5 | J21: 22110 | K21: 29340 | L21: 30360 | M21: 0.85 | N21: 2505.8 | O21: 3325.2 | P21: 3440.8 | Q21: 19604.2 | R21: 26014.8 | S21: 26919.2
A22: Professional Fees: Accounting | B22: month | C22: 50 | E22: Nov | F22: 3451.5 | G22: 4162.5 | H22: 4529 | I22: 7.5 | J22: 25886.25 | K22: 31218.75 | L22: 33967.5 | M22: 0.85 | N22: 2933.775 | O22: 3538.125 | P22: 3849.65 | Q22: 22952.475 | R22: 27680.625 | S22: 30117.85
A23: Professional Fees: Legal | B23: month | C23: 25 | E23: Dec | F23: 4523.5 | G23: 4958.5 | H23: 5788 | I23: 7.5 | J23: 33926.25 | K23: 37188.75 | L23: 43410 | M23: 0.85 | N23: 3844.975 | O23: 4214.725 | P23: 4919.8 | Q23: 30081.275 | R23: 32974.025 | S23: 38490.2
A24: Powdered and Liquid Beverages | C24: 0 | E24: TOTAL | F24: =SUM(F12:F23) -> 35487 | G24: =SUM(G12:G23) -> 39606 | H24: =SUM(H12:H23) -> 45367 | J24: =SUM(J12:J23) -> 266152.5 | K24: =SUM(K12:K23) -> 297045 | L24: =SUM(L12:L23) -> 340252.5 | N24: =SUM(N12:N23) -> 30163.95 | O24: =SUM(O12:O23) -> 33665.1 | P24: =SUM(P12:P23) -> 38561.95 | Q24: =SUM(Q12:Q23) -> 235988.55 | R24: 263379.9 | S24: 301690.55
A25: Rent | B25: month | C25: 1000
A26: Previous research expense for Donuts advancements | C26: 1500
A27: Supplies: Office | B27: month | C27: 25
A28: Utilities | B28: month | C28: 200
E29: Profit
E32: Total Profit
A34: Additional Data
A35: Monthly Production | B35: Lost Sales | C35: Day old revenue | D35: High demand, % above Average | E35: Low Demand, % below average
A36: 4000 | B36: 3 | C36: 1.25 | D36: 0.22 | E36: 0.26
A37: Franchise
A38: Monthly Fixed Expense increase | B38: 7000
A39: Monthly Production Increase | B39: 0.32
A40: Monthly demand increase | B40: 0.24
A41: States of Natures | B41: probabilities
A42: High demand | B42: 0.2
A43: Average demand | B43: 0.55
A44: Low demand | B44: 0.25
A68: Total

Sheet SI and regression Pt 1
A1: Month | B1: Demand | C1: Yearly average | D1: Seasonal Index | E1: Average SI | F1: Deseasonalized | G1: Time period | J1: Regression Output
A2: 2018-01-01 | B2: 2302 | D2: =B2/C13 -> 0.7784259024 | E2: =3209/3070 -> 1.045276873 | F2: =24067.5/E2 -> 23025 | G2: 2018-01-01 | I2: CLICK CELL J2 as output cell for regression | J2: SUMMARY OUTPUT
A3: 2018-02-01 | B3: 2792.5 | D3: =B3/C13 -> 0.9442894581 | E3: =2778/3070 -> 0.9048859935 | F3: =20835/E3 -> 23025 | G3: 2018-02-01
A4: 2018-03-01 | B4: 2454.5 | D4: =B4/C13 -> 0.8299940823 | E4: =2428/3070 -> 0.7908794788 | F4: =18210/E4 -> 23025 | G4: 2018-03-01 | J4: Regression Statistics
A5: 2018-04-01 | B5: 3254 | D5: =B5/C13 -> 1.100346606 | E5: =3209/3070 -> 1.045276873 | F5: =24067.5/E5 -> 23025 | G5: 2018-04-01 | J5: Multiple R | K5: 0.9369352204
A6: 2018-05-01 | B6: 3586.5 | D6: =B6/C13 -> 1.212782146 | E6: =2778/3070 -> 0.9048859935 | F6: =20835/E6 -> 23025 | G6: 2018-05-01 | J6: R Square | K6: 0.8778476072
A7: 2018-06-01 | B7: 2635.5 | D7: =B7/C13 -> 0.8911995942 | E7: =2428/3070 -> 0.7908794788 | F7: =18210/E7 -> 23025 | G7: 2018-06-01 | J7: Adjusted R Square | K7: 0.8702130826
A8: 2018-07-01 | B8: 1986 | D8: =B8/C13 -> 0.6715698707 | E8: =3209/3070 -> 1.045276873 | F8: =24067.5/E8 -> 23025 | G8: 2018-07-01 | J8: Standard Error | K8: 112.3013085
A9: 2018-08-01 | B9: 2685 | D9: =B9/C13 -> 0.9079381182 | E9: =2778/3070 -> 0.9048859935 | F9: =20835/E9 -> 23025 | G9: 2018-08-01 | J9: Observations | K9: 35
A10: 2018-09-01 | B10: 2868 | D10: =B10/C13 -> 0.9698199341 | E10: =2428/3070 -> 0.7908794788 | F10: =18210/E10 -> 23025 | G10: 2018-09-01
A11: 2018-10-01 | B11: 2948 | D11: =B11/C13 -> 0.996872094 | E11: =3209/3070 -> 1.045276873 | F11: =24067.5/E11 -> 23025 | G11: 2018-10-01 | J11: ANOVA
A12: 2018-11-01 | B12: 3451.5 | C12: Put yearly average in below cell | D12: =B12/13 -> 265.5 | E12: =2778/3070 -> 0.9048859935 | F12: =20835/E12 -> 23025 | G12: 2018-11-01 | K12: df | L12: SS | M12: MS | N12: F | O12: Significance F
A13: 2018-12-01 | B13: 4523.5 | C13: =AVERAGE(B2:B13) -> 2957.25 | D13: =B13/C13 -> 1.529630569 | E13: =2428/3070 -> 0.7908794788 | F13: =18210/E13 -> 23025 | G13: 2018-12-01 | J13: Regression | K13: 2 | L13: 2900258.859 | M13: 1450129.429 | N13: 114.9839261 | O13: 2.457149949e-15
A14: 2019-01-01 | B14: 2403 | D14: =B14/C25 -> 0.7280715043 | E14: =2217/3436.5 -> 0.6451331296 | F14: =16627.5/E14 -> 25773.75 | G14: 2019-01-01 | J14: Residual | K14: 32 | L14: 403570.6842 | M14: 12611.58388
A15: 2019-02-01 | B15: 2473.5 | D15: =B15/C25 -> 0.7494319043 | E15: =2683.5/3436.5 -> 0.780881711 | F15: =20126.25/E15 -> 25773.75 | G15: 2019-02-01 | J15: Total | K15: 34 | L15: 3303829.543
A16: 2019-03-01 | B16: 2583.5 | D16: =B16/C25 -> 0.7827601879 | E16: =2217/3436.5 -> 0.6451331296 | F16: =16627.5/E16 -> 25773.75 | G16: 2019-03-01
A17: 2019-04-01 | B17: 3362 | D17: =B17/C25 -> 1.01863354 | E17: =2683.5/3436.5 -> 0.780881711 | F17: =20126.25/E17 -> 25773.75 | G17: 2019-04-01 | K17: Coefficients | L17: Standard Error | M17: t Stat | N17: P-value | O17: Lower 95% | P17: Upper 95% | Q17: Lower 95.0% | R17: Upper 95.0%
A18: 2019-05-01 | B18: 3400.5 | D18: =B18/C25 -> 1.03029844 | E18: =2217/3436.5 -> 0.6451331296 | F18: =16627.5/E18 -> 25773.75 | G18: 2019-05-01 | J18: Intercept | K18: 38719.298 | L18: 406.6986125 | M18: 95.20390975 | N18: 7.720581567e-41 | O18: 37890.88004 | P18: 39547.71596 | Q18: 37890.88004 | R18: 39547.71596
A19: 2019-06-01 | B19: 3628.5 | D19: =B19/C25 -> 1.099378882 | E19: =2683.5/3436.5 -> 0.780881711 | F19: =20126.25/E19 -> 25773.75 | G19: 2019-06-01 | J19: 1.045276873 | K19: 330.1550774 | L19: 198.2908053 | M19: 1.665004471 | N19: 0.1056744545 | O19: -73.75007374 | P19: 734.0602286 | Q19: -73.75007374 | R19: 734.0602286
A20: 2019-07-01 | B20: 2614 | D20: =B20/C25 -> 0.7920012119 | E20: =2217/3436.5 -> 0.6451331296 | F20: =16627.5/E20 -> 25773.75 | G20: 2019-07-01 | J20: 23025 | K20: 0.1687552328 | L20: 0.01201517464 | M20: 14.0451752 | N20: 3.115324694e-15 | O20: 0.1442811231 | P20: 0.1932293426 | Q20: 0.1442811231 | R20: 0.1932293426
A21: 2019-08-01 | B21: 2979 | D21: =B21/C25 -> 0.9025905166 | E21: =2683.5/3436.5 -> 0.780881711 | F21: =20126.25/E21 -> 25773.75 | G21: 2019-08-01
A22: 2019-09-01 | B22: 3129 | D22: =B22/C25 -> 0.948038176 | E22: =2217/3436.5 -> 0.6451331296 | F22: =16627.5/E22 -> 25773.75 | G22: 2019-09-01
A23: 2019-10-01 | B23: 3912 | D23: =B23/C25 -> 1.185274958 | E23: =2683.5/3436.5 -> 0.780881711 | F23: =20126.25/E23 -> 25773.75 | G23: 2019-10-01
A24: 2019-11-01 | B24: 4162.5 | C24: Put yearly average in below cell | D24: =B24/C25 -> 1.26117255 | E24: =2217/3436.5 -> 0.6451331296 | F24: =16627.5/E24 -> 25773.75 | G24: 2019-11-01
A25: 2019-12-01 | B25: 4958.5 | C25: =AVERAGE(B14:B25) -> 3300.5 | D25: =B25/C25 -> 1.502348129 | E25: =2683.5/3436.5 -> 0.780881711 | F25: =20126.25/E25 -> 25773.75 | G25: 2019-12-01
A26: 2020-01-01 | B26: 2695 | D26: =B26/C37 -> 0.7128529548 | E26: =2674/3657.5 -> 0.7311004785 | F26: =20055/E26 -> 27431.25 | G26: 2020-01-01
A27: 2020-02-01 | B27: 3203 | D27: =B27/C37 -> 0.8472237529 | E27: =3112.5/3657.5 -> 0.8509911141 | F27: =23343.75/E27 -> 27431.25 | G27: 2020-02-01
A28: 2020-03-01 | B28: 3056 | D28: =B28/C37 -> 0.8083408645 | E28: =2674/3657.5 -> 0.7311004785 | F28: =20055/E28 -> 27431.25 | G28: 2020-03-01
A29: 2020-04-01 | B29: 3620 | D29: =B29/C37 -> 0.9575241916 | E29: =3112.5/3657.5 -> 0.8509911141 | F29: =23343.75/E29 -> 27431.25 | G29: 2020-04-01
A30: 2020-05-01 | B30: 3981.5 | D30: =B30/C37 -> 1.053144356 | E30: =2674/3657.5 -> 0.7311004785 | F30: =20055/E30 -> 27431.25 | G30: 2020-05-01
A31: 2020-06-01 | B31: 4053.5 | D31: =B31/C37 -> 1.072189036 | E31: =3112.5/3657.5 -> 0.8509911141 | F31: =23343.75/E31 -> 27431.25 | G31: 2020-06-01
A32: 2020-07-01 | B32: 3161 | D32: =B32/C37 -> 0.8361143563 | E32: =2674/3657.5 -> 0.7311004785 | F32: =20055/E32 -> 27431.25 | G32: 2020-07-01
A33: 2020-08-01 | B33: 3619 | D33: =B33/C37 -> 0.9572596821 | E33: =3112.5/3657.5 -> 0.8509911141 | F33: =23343.75/E33 -> 27431.25 | G33: 2020-08-01
A34: 2020-09-01 | B34: 3613 | D34: =B34/C37 -> 0.9556726255 | E34: =2674/3657.5 -> 0.7311004785 | F34: =20055/E34 -> 27431.25 | G34: 2020-09-01
A35: 2020-10-01 | B35: 4048 | D35: =B35/C37 -> 1.070734234 | E35: =3112.5/3657.5 -> 0.8509911141 | F35: =23343.75/E35 -> 27431.25 | G35: 2020-10-01
A36: 2020-11-01 | B36: 4529 | C36: Put yearly average in below cell | D36: =B36/C37 -> 1.197963277 | E36: =2674/3657.5 -> 0.7311004785 | F36: =20055/E36 -> 27431.25 | G36: 2020-11-01 | I36: Use the average seasonal Index in the column for year 2018
A37: 2020-12-01 | B37: 5788 | C37: =AVERAGE(B26:B37) -> 3780.583333 | D37: =B37/C37 -> 1.530980669 | E37: =3112.5/3657.5 -> 0.8509911141 | F37: =23343.75/E37 -> 27431.25 | G37: 2020-12-01 | H37: Deseasonalized forecast | I37: Seasonalized forecast
H38: =F2 -> 23025 | I38: =D2 -> 0.7784259024 | J38: When you move your forecast to the profit models, you must use an equation, not just copy the values
H39: =F3 -> 23025 | I39: =D3 -> 0.9442894581
H40: 23025 | I40: =D4 -> 0.8299940823
H41: 23025 | I41: =D5 -> 1.100346606
H42: 23025 | I42: =D6 -> 1.212782146
H43: 23025 | I43: =D7 -> 0.8911995942
H44: 23025 | I44: =D8 -> 0.6715698707
H45: 23025 | I45: =D9 -> 0.9079381182
H46: 23025 | I46: =D10 -> 0.9698199341
H47: 23025 | I47: =D11 -> 0.996872094
H48: 23025 | I48: =D12 -> 265.5
H49: 23025 | I49: =D13 -> 1.529630569
Z100: Melissa Salgado
Z102: Spring 2021

Sheet Current operations Pt2 & Pt3
A1: CURRENT OPERATIONS | E1: Monthly Production | F1: Lost Sales | G1: Day old revenue | Z1: test
A2: Part 2 | Z2: Summer 2020
A3: AVERAGE DEMAND
A4: Month
A5: Demand
A6: satisfied demand
A7: Extra donuts(over)
A8: Unsatisfied customers (short)
A9: Revenue
A10: coffee
A11: donut
A12: Revenue from day old sales
A13: Total Revenue
A14: Expenses
A15: Fixed Expenses
A16: Total Fixed Expense
A18: Variable Expenses
A19: Coffee Variable expense
A20: Donut Variable expense
A21: Total Variable Expenses
A22: Expenses: due to lost sales
A23: Total Expenses
N24: Yearly Total
A25: Profit Donuts and Coffee
A27: Part 3 | B27: You should be able to copy from average to high and low and then just make some modifications
A28: HIGH DEMAND
A29: Month
A30: Demand
A31: satisfied demand
A32: Extra donuts(over)
A33: Unsatisfied customers (short)
A34: Revenue
A35: coffee
A36: donut
A37: Revenue from day old sales
A38: Total Revenue
A39: Expenses
A40: Fixed Expenses
A41: Total Fixed Expense
A43: Variable Expenses
A44: Coffee Variable expense
A45: Donut Variable expense
A46: Total Variable Expenses
A47: Expenses: due to lost sales
A48: Total Expenses
N49: Yearly Total
A50: Profit Donuts and Coffee
A52: Part 3
A53: LOW DEMAND
A54: Month
A55: Demand
A56: satisfied demand
A57: Extra donuts(over)
A58: Unsatisfied customers (short)
A59: Revenue
A60: coffee
A61: donut
A62: Revenue from day old sales
A63: Total Revenue
A64: Expenses
A65: Fixed Expenses
A66: Total Fixed Expense
A68: Variable Expenses
A69: Coffee Variable expense
A70: Donut Variable expense
A71: Total Variable Expenses
A72: Expenses: due to lost sales
A73: Total Expenses
N74: Yearly Total
A75: Profit Donuts and Coffee
Z200: Melissa Salgado
Z201: Spring 2021

Sheet Franchise operations Pt2 & Pt3
A1: FRANCHISE | E1: Monthly Production | F1: Lost Sales | G1: Day old revenue
A2: Part 2
A3: AVERAGE DEMAND
A4: Month
A5: Demand
A6: satisfied demand
A7: Extra donuts(over)
A8: Unsatisfied customers (short)
A9: Revenue
A10: coffee
A11: donut
A12: Revenue from day old sales
A13: Total Revenue
A14: Expenses
A15: Fixed Expenses
A16: Total Fixed Expense
A18: Variable Expenses
A19: Coffee Variable expense
A20: Donut Variable expense
A21: Total Variable Expenses
A22: Expenses: due to lost sales
A23: Total Expenses
N24: Yearly Total
A25: Profit Donuts and Coffee
A27: Part 3
A28: HIGH DEMAND
A29: Month
A30: Demand
A31: satisfied demand
A32: Extra donuts(over)
A33: Unsatisfied customers (short)
A34: Revenue
A35: coffee
A36: donut
A37: Revenue from day old sales
A38: Total Revenue
A39: Expenses
A40: Fixed Expenses
A41: Total Fixed Expense
A43: Variable Expenses
A44: Coffee Variable expense
A45: Donut Variable expense
A46: Total Variable Expenses
A47: Expenses: due to lost sales
A48: Total Expenses
N49: Yearly Total
A50: Profit Donuts and Coffee
A52: Part 3
A53: LOW DEMAND
A54: Month
A55: Demand
A56: satisfied demand
A57: Extra donuts(over)
A58: Unsatisfied customers (short)
A59: Revenue
A60: coffee
A61: donut
A62: Revenue from day old sales
A63: Total Revenue
A64: Expenses
A65: Fixed Expenses
A66: Total Fixed Expense
A68: Variable Expenses
A69: Coffee Variable expense
A70: Donut Variable expense
A71: Total Variable Expenses
A72: Expenses: due to lost sales
A73: Total Expenses
N74: Yearly Total
A75: Profit Donuts and Coffee

Sheet Expected Values Pt3
B1: PAYOFF TABLE
C3: State of Nature | H3: Summary of Results | I3: Methods
B4: Decision Alternatives | C4: Low | D4: Average | E4: High | H4: =B4 -> Decision Alternatives | I4: Maximin | J4: MaxiMax | K4: Laplace | L4: MinMax regret | M4: EVUII | N4: EOL
H7: Decision Alternatives
B8: DM UNDER IGNORANCE
H9: Kiana should choose to:
B10: Maximin
C11: State of Nature
B12: Decision Alternatives | C12: Low | D12: Average | E12: High | H12: Because:
B17: Maximax
C18: State of Nature
B19: Decision Alternatives | C19: Low | D19: Average | E19: High
B24: Laplace
C25: State of Nature
B26: Decision Alternatives | C26: Low | D26: Average | E26: High
B31: Minimax Regret
B32: Regret table | C32: State of Nature
B33: Decision Alternatives | C33: Low | D33: Average | E33: High
B37: DM UNDER RISK
B38: EVUII
C39: State of Nature
B40: Decision Alternatives | C40: Low | D40: Average | E40: High
B41: Probability
B46: EVUPI
C47: State of Nature
B48: Decision Alternatives | C48: Low | D48: Average | E48: High
B49: Probability
B52: EVPI
B54: EOL
B55: Regret table | C55: State of Nature
B56: Decision Alternatives | C56: Low | D56: Average | E56: High
B57: Probability

Sheet Sheet9
